[Event "98th Caplin Hastings Masters 2024-25"]
[Site "Hastings"]
[Date "2024.12.31"]
[Round "5.13"]
[White "Abrahams, Daniel"]
[Black "Gasanov, Eldar"]
[Result "1/2-1/2"]
[ECO "E32"]
[WhiteElo "2072"]
[BlackElo "2476"]
[Annotator "TA"]
[PlyCount "116"]
[EventDate "2024.12.23"]
[EventType "swiss"]
[EventCountry "ENG"]
[SourceTitle "playchess.com"]
[Source "ChessBase"]
[SourceQuality "1"]
[TimeControl "5400+30"]

{[%evp 21,116,8,3,0,0,0,0,-27,-33,-31,-31,-35,-38,-40,-33,-56,-30,-35,-40,-67,-83,-74,-68,-86,-41,-89,-89,-90,-82,-87,-86,-89,-83,-89,-77,-88,-65,-70,-66,-75,-37,-37,0,0,0,0,0,0,0,0,0,0,0,0,0,0,0,0,0,0,0,0,43,0,29,0,29,0,0,0,0,0,0,0,0,0,0,0,0,0,0,0,4,0,28,0,26,0,25,0,0,0,0,0,0,0,0]} 1. d4 {[%emt 0:00:03]} Nf6 {[%emt 0:00:48]} 2. c4 {[%emt 0:00:12]} e6 {[%emt 0:01:05]} 3. Nc3 {[%emt 0:00:09]} Bb4 {[%emt 0:00:28]} 4. Qc2 {[%emt 0:00:16]} d6 {[%emt 0:05:39]} 5. Nf3 {[%emt 0:00:45]} Nbd7 {[%emt 0:06:35]} 6. a3 {[%emt 0:03:24]} Bxc3+ {[%emt 0:00:10]} 7. Qxc3 {[%emt 0:00:05]} O-O {[%emt 0:02:58]} 8. e3 {[%emt 0:03:55]} b6 {[%emt 0:02:00]} 9. Be2 {[%emt 0:00:20]} Bb7 {[%emt 0:00:23]} 10. O-O {[%emt 0:00:15]} Ne4 {[%emt 0:01:47]} 11. Qc2 {[%emt 0:00:14]} f5 {[%emt 0:00:24]} 12. Ne1 {[%emt 0:01:14]} Qh4 {[%emt 0:11:08]} 13. f3 {[%emt 0:17:43]} Ng5 $1 {[%emt 0:02:01]} 14. f4 {[%emt 0:00:54]} Ne4 {[%emt 0:01:35]} 15. Nf3 {[%emt 0:02:50]} Qh6 {[%emt 0:10:49]} 16. Nd2 {[%emt 0:01:45]} Ndf6 {[%emt 0:06:57]} 17. Bf3 {[%emt 0:00:10]} g5 {[%emt 0:06:14]} 18. b3 {[%emt 0:12:09]} Rae8 {[%emt 0:02:03]} 19. Nxe4 {[%emt 0:02:04]} Bxe4 {[%emt 0:01:50]} 20. Qe2 {[%emt 0:00:53]} g4 {[%emt 0:04:57]} 21. Bxe4 {[%emt 0:00:09]} Nxe4 {[%emt 0:00:08]} 22. Bb2 {[%emt 0:01:02]} Qh4 {[%emt 0:04:34]} 23. Qe1 {[%emt 0:02:47]} (23. c5 $15 {is more appropriate.}) 23... Qxe1 $17 {[%emt 0:03:31]} 24. Rfxe1 {[%emt 0:00:22]} Kf7 {[%emt 0:00:41]} (24... Nd2 25. Bc3 Ne4 (25... Nxb3 26. Rab1 $11) 26. Rec1) 25. Re2 {[%emt 0:06:07]} Ke7 {[%emt 0:01:10]} 26. b4 {[%emt 0:00:39]} Kd7 {[%emt 0:01:02]} 27. Rc1 {[%emt 0:01:37]} c6 {[%emt 0:01:28]} 28. Rec2 {[%emt 0:01:27] White is weak on the light squares} Rc8 {[%emt 0:00:43]} 29. Kf1 {[%emt 0:00:29]} d5 {[%emt 0:05:08] and ...dxc4 should not be overlooked} 30. c5 $1 {[%emt 0:03:18]} b5 {[%emt 0:02:39]} 31. Bc3 {[%emt 0:00:06]} Kc7 {[%emt 0:03:38][%cal Oa7a5]} 32. Be1 {[%emt 0:00:07]} Kb7 {[%emt 0:00:17]} 33. a4 {[%emt 0:01:07]} bxa4 {[%emt 0:01:00]} 34. Ra2 {[%emt 0:00:13]} a6 {[%emt 0:01:13]} 35. Rxa4 {[%emt 0:00:20]} Ra8 {[%emt 0:00:06]} 36. Rca1 {[%emt 0:00:36]} Rfb8 {[%emt 0:02:15]} 37. R4a3 {[%emt 0:00:25]} Rg8 {[%emt 0:00:35]} 38. Ra4 {[%emt 0:01:04]} Rg6 {[%emt 0:00:54]} 39. R4a3 {[%emt 0:03:42]} Rgg8 {[%emt 0:01:14]} 40. Ra4 {[%emt 0:00:11]} Nf6 {[%emt 0:00:10]} 41. Bh4 {[%emt 0:00:44]} Ne8 {[%emt 0:00:45]} 42. Be1 {[%emt 0:01:06]} Nc7 {[%emt 0:00:09]} 43. Bh4 {[%emt 0:01:17]} Nb5 {[%emt 0:00:17]} 44. Be1 {[%emt 0:00:05]} Rg6 {[%emt 0:00:06]} 45. Ra5 {[%emt 0:01:45]} Rh6 {[%emt 0:00:16]} 46. Kg1 {[%emt 0:00:05]} Rh5 {[%emt 0:00:35]} 47. R5a4 {[%emt 0:00:19]} Nc7 {[%emt 0:00:19]} 48. R4a3 {[%emt 0:00:09]} Rh6 {[%emt 0:01:57]} 49. Ra4 {[%emt 0:02:38]} Nb5 {[%emt 0:00:18]} 50. R4a2 {[%emt 0:00:34]} Rg6 {[%emt 0:00:57]} 51. Kf1 {[%emt 0:00:27]} Nc7 {[%emt 0:00:45]} 52. Ra4 {[%emt 0:00:13]} Rgg8 {[%emt 0:00:25]} 53. Bh4 {[%emt 0:00:24]} Nb5 {[%emt 0:00:17]} 54. Be1 {[%emt 0:00:22]} Rgf8 {[%emt 0:00:46]} 55. R4a2 {[%emt 0:00:26]} Rf6 {[%emt 0:01:03]} 56. Ra4 {[%emt 0:00:22]} Rh6 {[%emt 0:00:14]} 57. Kg1 {[%emt 0:00:18]} Nc7 {[%emt 0:01:37]} 58. R4a2 {[%emt 0:00:09]} Nb5 {[%emt 0:00:48]} 1/2-1/2

[Event "98th Caplin Hastings Masters 2024-25"]
[Site "Hastings"]
[Date "2024.12.31"]
[Round "5.14"]
[White "Bhatia, Kanishka"]
[Black "Li, Jack"]
[Result "0-1"]
[ECO "A29"]
[WhiteElo "2018"]
[BlackElo "1717"]
[Annotator "NA RC"]
[PlyCount "178"]
[EventDate "2024.12.23"]
[EventType "swiss"]
[EventCountry "ENG"]
[SourceTitle "playchess.com"]
[Source "ChessBase"]
[SourceQuality "1"]
[TimeControl "5400+30"]

1. c4 {[%emt 0:00:13]} e5 {[%emt 0:00:05]} 2. g3 {[%emt 0:00:25]} Nf6 {[%emt 0:00:25]} 3. Bg2 {[%emt 0:00:22]} d5 {[%emt 0:01:53]} 4. cxd5 {[%emt 0:00:52]} Nxd5 {[%emt 0:00:05]} 5. Nc3 {[%emt 0:00:38]} Nb6 {[%emt 0:00:09]} 6. Nf3 {[%emt 0:00:47]} Nc6 {[%emt 0:00:04]} 7. O-O {[%emt 0:00:33]} Be7 {[%emt 0:00:07]} 8. d3 {[%emt 0:01:59]} O-O {[%emt 0:00:11]} 9. Bd2 {[%emt 0:00:35]} Be6 {[%emt 0:02:54]} 10. Rc1 {[%emt 0:01:54]} f5 {[%emt 0:03:48]} 11. a3 {[%emt 0:04:04]} a5 {[%emt 0:03:34]} 12. Na4 {[%emt 0:01:45]} e4 {[%emt 0:03:23]} 13. Nc5 {[%emt 0:13:55]} exf3 {[%emt 0:14:11]} 14. Nxe6 {[%emt 0:00:45]} Qd6 {[%emt 0:00:18]} 15. Qb3 {[%emt 0:01:58]} fxg2 {[%emt 0:01:43]} 16. Nxf8+ {[%emt 0:03:29]} Kxf8 {[%emt 0:00:18]} 17. Rfe1 {[%emt 0:02:07]} Qd5 {[%emt 0:02:36]} 18. Qxd5 {[%emt 0:00:28]} Nxd5 {[%emt 0:00:02]} 19. e4 {[%emt 0:01:38]} fxe4 {[%emt 0:03:32]} 20. dxe4 {[%emt 0:00:06]} Nf6 {[%emt 0:01:20]} 21. Bf4 {[%emt 0:01:51]} Nd4 {[%emt 0:02:30]} 22. Kxg2 {[%emt 0:00:28]} c6 {[%emt 0:01:27]} 23. f3 {[%emt 0:03:39]} Ne6 {[%emt 0:06:33]} 24. Be3 {[%emt 0:01:15]} a4 {[%emt 0:00:18]} 25. Red1 {[%emt 0:01:34]} Ra5 {[%emt 0:00:16]} 26. Rc4 {[%emt 0:04:10]} Bc5 {[%emt 0:07:42]} 27. Bd2 {[%emt 0:04:11]} Ra8 {[%emt 0:01:16]} 28. f4 {[%emt 0:02:44]} b6 {[%emt 0:06:37]} 29. f5 {[%emt 0:05:24]} Nd8 {[%emt 0:05:20]} 30. Kf3 {[%emt 0:06:32]} Nf7 {[%emt 0:02:37]} 31. Bf4 {[%emt 0:02:36]} g5 {[%emt 0:05:36]} 32. fxg6 {[%emt 0:01:32]} hxg6 {[%emt 0:00:06]} 33. h4 {[%emt 0:02:01]} Ke7 {[%emt 0:00:40]} 34. Rc3 {[%emt 0:03:06]} Nd7 {[%emt 0:01:10]} 35. e5 {[%emt 0:06:52]} Nfxe5+ {[%emt 0:02:28]} 36. Ke4 {[%emt 0:02:42]} Ke6 {[%emt 0:01:03]} 37. Bxe5 {[%emt 0:02:40]} Nxe5 {[%emt 0:00:08]} 38. Rdc1 {[%emt 0:03:14]} Re8 {[%emt 0:06:57]} 39. Kf4 {[%emt 0:06:01]} Rf8+ {[%emt 0:00:53]} 40. Ke4 {[%emt 0:00:37]} Nd7 {[%emt 0:03:14]} 41. Rc4 {[%emt 0:00:47]} Rf2 {[%emt 0:00:58]} 42. Rxa4 {[%emt 0:02:50]} Rxb2 {[%emt 0:02:42]} 43. Rc3 {[%emt 0:01:42]} Rf2 {[%emt 0:06:39]} 44. Ra8 {[%emt 0:03:18]} Nf6+ {[%emt 0:02:15]} 45. Kd3 {[%emt 0:00:06]} Nd5 {[%emt 0:00:21]} 46. Rb3 {[%emt 0:00:21]} Rf3+ {[%emt 0:01:05]} 47. Kc2 {[%emt 0:00:12]} Ne3+ {[%emt 0:00:23]} 48. Kb1 {[%emt 0:00:31]} Rxg3 {[%emt 0:00:24]} 49. Rg8 {[%emt 0:00:22]} Rg1+ {[%emt 0:00:22]} 50. Ka2 {[%emt 0:00:27]} Nf5 {[%emt 0:00:37]} 51. Rh3 {[%emt 0:00:55]} Rg4 {[%emt 0:00:54]} 52. Rh8 {[%emt 0:01:43]} Bd4 {[%emt 0:00:10]} 53. Rh7 {[%emt 0:00:20]} Bf6 {[%emt 0:01:40]} 54. h5 {[%emt 0:00:19]} gxh5 {[%emt 0:00:01]} 55. R3xh5 {[%emt 0:00:18]} Ne7 {[%emt 0:00:30]} 56. Rh2 {[%emt 0:00:27]} Nd5 {[%emt 0:00:11]} 57. Re2+ {[%emt 0:00:38]} Kd6 {[%emt 0:00:02]} 58. Rh6 {[%emt 0:00:20]} Nc3+ {[%emt 0:01:08]} 59. Kb3 {[%emt 0:00:06]} Nxe2 {[%emt 0:00:04]} 60. Rxf6+ {[%emt 0:00:04]} Kd5 {[%emt 0:00:05]} 61. Rf5+ {[%emt 0:00:14]} Ke6 {[%emt 0:00:06]} 62. Rf8 {[%emt 0:00:07]} Nd4+ {[%emt 0:00:10]} 63. Kc4 {[%emt 0:00:12]} Nb5+ {[%emt 0:00:14]} 64. Kb3 {[%emt 0:00:09]} Rg3+ {[%emt 0:00:03]} 65. Kb4 {[%emt 0:00:04]} Rxa3 {[%emt 0:00:59]} 66. Rb8 {[%emt 0:00:36]} Ra6 {[%emt 0:00:05]} 67. Rh8 {[%emt 0:00:08]} Nd4 {[%emt 0:00:42]} 68. Rh6+ {[%emt 0:00:19]} Kd7 {[%emt 0:00:07]} 69. Rh7+ {[%emt 0:00:20]} Kd6 {[%emt 0:00:03]} 70. Rh6+ {[%emt 0:05:53]} Ne6 {[%emt 0:00:04]} 71. Rh1 {[%emt 0:00:00]} Ra5 {[%emt 0:00:13]} 72. Rd1+ {[%emt 0:00:00]} Rd5 {[%emt 0:00:04]} 73. Ra1 {[%emt 0:00:00]} Rd4+ {[%emt 0:00:08]} 74. Kc3 {[%emt 0:00:00]} b5 {[%emt 0:00:15]} 75. Re1 {[%emt 0:00:00]} Rh4 {[%emt 0:00:12]} 76. Rd1+ {[%emt 0:00:00]} Kc5 {[%emt 0:00:03]} 77. Re1 {[%emt 0:00:00]} Rh3+ {[%emt 0:00:04]} 78. Kb2 {[%emt 0:00:00]} Nd4 {[%emt 0:00:06]} 79. Re5+ {[%emt 0:00:00]} Kc4 {[%emt 0:00:06]} 80. Re4 {[%emt 0:00:00]} Rh2+ {[%emt 0:00:05]} 81. Kb1 {[%emt 0:00:00]} b4 {[%emt 0:00:35]} 82. Rg4 {[%emt 0:00:00]} b3 {[%emt 0:00:39]} 83. Kc1 {[%emt 0:00:00]} c5 {[%emt 0:00:08]} 84. Kb1 {[%emt 0:00:00]} Kb4 {[%emt 0:00:43]} 85. Rg8 {[%emt 0:00:00]} c4 {[%emt 0:00:14]} 86. Rg1 {[%emt 0:00:00]} c3 {[%emt 0:00:13]} 87. Re1 {[%emt 0:00:00]} Rb2+ {[%emt 0:00:10]} 88. Kc1 {[%emt 0:00:00]} Ne2+ {[%emt 0:00:18]} 89. Kd1 {[%emt 0:00:00]} Rd2# {[%emt 0:00:06]} 0-1

[Event "98th Caplin Hastings Masters 2024-25"]
[Site "Hastings"]
[Date "2024.12.31"]
[Round "5.15"]
[White "Schimnatkowski, Lukas"]
[Black "Adams, Henry"]
[Result "0-1"]
[ECO "A14"]
[WhiteElo "2221"]
[BlackElo "1991"]
[Annotator "NA RC"]
[PlyCount "50"]
[EventDate "2024.12.23"]
[EventType "swiss"]
[EventCountry "ENG"]
[SourceTitle "playchess.com"]
[Source "ChessBase"]
[SourceQuality "1"]
[TimeControl "5400+30"]

1. c4 {[%emt 0:00:03]} Nf6 {[%emt 0:00:56]} 2. g3 {[%emt 0:00:17]} e6 {[%emt 0:01:00]} 3. Bg2 {[%emt 0:00:06]} d5 {[%emt 0:00:07]} 4. Nf3 {[%emt 0:00:04]} c5 {[%emt 0:01:54]} 5. O-O {[%emt 0:01:13]} Nc6 {[%emt 0:02:34]} 6. b3 {[%emt 0:02:32]} Be7 {[%emt 0:05:18]} 7. Bb2 {[%emt 0:06:25]} d4 {[%emt 0:08:13]} 8. e3 {[%emt 0:02:39]} e5 {[%emt 0:02:01]} 9. exd4 {[%emt 0:01:03]} exd4 {[%emt 0:00:32]} 10. Re1 {[%emt 0:10:24]} O-O {[%emt 0:03:02]} 11. d3 {[%emt 0:01:41]} Bf5 {[%emt 0:05:19]} 12. Ne5 {[%emt 0:03:28]} Nxe5 {[%emt 0:05:36]} 13. Rxe5 {[%emt 0:00:08]} Bg4 {[%emt 0:01:00]} 14. Bf3 {[%emt 0:05:00]} Bd6 {[%emt 0:03:14]} 15. Re1 {[%emt 0:00:54]} Qd7 {[%emt 0:04:34]} 16. Nd2 {[%emt 0:04:45]} Qf5 {[%emt 0:04:24]} 17. Bxg4 {[%emt 0:08:45]} Nxg4 {[%emt 0:01:25]} 18. Qf3 {[%emt 0:01:12]} Qg6 {[%emt 0:10:15]} 19. Qxb7 {[%emt 0:30:30]} Qxd3 {[%emt 0:07:38]} 20. Rad1 {[%emt 0:07:59]} Rae8 {[%emt 0:04:30]} 21. Rxe8 {[%emt 0:04:42]} Rxe8 {[%emt 0:00:32]} 22. Qf3 {[%emt 0:00:19]} Qe2 {[%emt 0:03:42]} 23. Rf1 {[%emt 0:03:40]} Qxd2 {[%emt 0:05:03]} 24. Qxg4 {[%emt 0:00:22]} Qxb2 {[%emt 0:01:04]} 25. Qd7 {[%emt 0:00:51]} Re6 {[%emt 0:00:10]} 0-1

[Event "98th Caplin Hastings Masters 2024-25"]
[Site "Hastings"]
[Date "2024.12.31"]
[Round "5.16"]
[White "Gu In-Jung"]
[Black "Golding, James"]
[Result "1-0"]
[ECO "D34"]
[WhiteElo "1987"]
[BlackElo "2203"]
[Annotator "TA"]
[PlyCount "183"]
[EventDate "2024.12.23"]
[EventType "swiss"]
[EventCountry "ENG"]
[SourceTitle "playchess.com"]
[Source "ChessBase"]
[SourceQuality "1"]
[TimeControl "5400+30"]

{[%evp 20,183,34,23,30,14,41,33,33,37,41,32,40,41,52,46,56,42,35,40,41,0,31,-24,-13,-52,-45,-40,-13,-62,0,-11,0,-9,-25,-27,-24,-27,-6,-10,-12,-13,-12,-17,-6,-8,0,0,0,0,0,0,0,-13,-9,-29,-15,-28,-21,-21,-32,-97,-39,-47,0,-52,0,-33,0,0,0,0,0,0,0,0,0,-2,0,-26,0,0,0,0,0,0,0,0,0,0,0,0,0,0,0,0,0,0,0,0,0,0,0,0,0,0,0,0,0,0,0,0,0,0,0,0,0,0,0,0,0,0,0,0,0,0,0,0,0,0,0,0,0,0,0,0,0,0,323,323,323,323,316,310,308,0,4280,2858,6091,3937,8961,7952,2202,1620,4134,1489,29957,9837,29974,29971,29968,29973,29988,29989,29992,29989]} 1. Nf3 {[%emt 0:00:01]} d5 {[%emt 0:00:36]} 2. g3 {[%emt 0:00:04]} c5 {[%emt 0:00:20]} 3. Bg2 {[%emt 0:00:04]} Nc6 {[%emt 0:00:06]} 4. d4 {[%emt 0:00:05]} Nf6 {[%emt 0:02:00]} 5. O-O {[%emt 0:00:05]} e6 {[%emt 0:09:02]} 6. c4 {[%emt 0:00:13]} Be7 {[%emt 0:00:05]} 7. cxd5 {[%emt 0:07:19]} exd5 {[%emt 0:00:07]} 8. Nc3 {[%emt 0:04:34]} O-O {[%emt 0:00:07]} 9. Bg5 {[%emt 0:02:47]} c4 {[%emt 0:00:07]} 10. Ne5 {[%emt 0:02:38]} Be6 {[%emt 0:01:34]} 11. e3 {[%emt 0:07:50]} Rc8 {[%emt 0:04:17][%cal Ba8c8,Bc8b8,Bb8b5][%mdl 32]} 12. h3 {[%emt 0:07:37]} Ne8 {[%emt 0:14:47]} 13. Nxc6 {[%emt 0:08:51]} bxc6 {[%emt 0:00:06]} 14. Bxe7 {[%emt 0:00:03]} Qxe7 {[%emt 0:00:07]} 15. Na4 {[%emt 0:00:27]} Nd6 {[%emt 0:03:14]} 16. b3 {[%emt 0:06:39]} Rb8 {[%emt 0:02:39]} 17. Nc5 {[%emt 0:00:25]} Bf5 {[%emt 0:02:51]} 18. Qd2 {[%emt 0:02:33]} Rb5 {[%emt 0:02:04]} 19. Rfc1 {[%emt 0:00:56]} Rfb8 {[%emt 0:01:50]} 20. Bf1 {[%emt 0:07:32]} Qf6 {[%emt 0:11:11]} 21. g4 {[%emt 0:09:52]} (21. f3 $14) 21... Ne4 $11 {[%emt 0:02:26]} 22. Nxe4 {[%emt 0:05:42]} Bxe4 {[%emt 0:00:07]} 23. Bg2 {[%emt 0:00:03] Dodges Qf3} Bd3 {[%emt 0:05:06]} 24. Rc3 {[%emt 0:02:25]} (24. Qd1 $1 $11) 24... Qg6 {[%emt 0:03:06]} (24... h5 $15) 25. Bf1 {[%emt 0:00:56]} Bxf1 {[%emt 0:01:38]} 26. Rxf1 {[%emt 0:00:56]} cxb3 {[%emt 0:02:10]} 27. Rxb3 {[%emt 0:02:06]} Rxb3 {[%emt 0:00:06]} 28. axb3 {[%emt 0:00:02]} Rxb3 {[%emt 0:02:41][%mdl 4096] Endgame KQR-KQR. Black is a pawn up.} 29. Qa2 {[%emt 0:01:39][%csl LRa7,LRb3]} Rb7 {[%emt 0:30:30]} 30. Qa6 {[%emt 0:00:11]} Rc7 {[%emt 0:00:00]} 31. Qa5 {[%emt 0:00:22]} Qd6 {[%emt 0:00:00][%cal Of7f5]} 32. Rb1 {[%emt 0:00:25] Threatening mate with Rb8+.} h6 {[%emt 0:00:00]} 33. Rb8+ {[%emt 0:00:22]} Kh7 {[%emt 0:00:00]} 34. Qa6 {[%emt 0:02:58]} Qe7 {[%emt 0:00:00]} 35. Qd3+ {[%emt 0:05:02]} g6 {[%emt 0:00:00]} 36. Qa6 {[%emt 0:01:39] Inhibits Rb7.} f5 {[%emt 0:00:00]} 37. Rc8 {[%emt 0:02:22]} fxg4 {[%emt 0:00:00]} 38. hxg4 {[%emt 0:01:08]} Qd7 {[%emt 0:00:00][%csl LRc8,LRg4]} 39. Rxc7 {[%emt 0:00:35]} Qxc7 {[%emt 0:00:00] KQ-KQ. Black is a pawn up.} 40. f4 {[%emt 0:00:56]} (40. Kf1 $15) 40... Qd7 {[%emt 0:00:00]} (40... g5 $1 $17) 41. Kf2 $15 {[%emt 0:00:18]} Kg7 {[%emt 0:00:00]} (41... Qxg4 42. Qxa7+ Kg8 (42... Kh8 43. Qb8+ Kg7 44. Qc7+ Kf6 45. Qd6+ Kf7 46. Qc7+ Kf6 47. Qd6+ Kf7 48. Qc7+ Kf6 $14) 43. Qb8+ Kf7 44. Qc7+ Kf6 45. Qd6+ Kf7 46. Qxc6 $11) (41... g5 $15 {is superior.}) 42. Kf3 {[%emt 0:01:52]} ({Better is} 42. Qa3 $11) 42... Kf7 {[%emt 0:00:00]} ({Black should try} 42... g5 $15) 43. Kf2 {[%emt 0:00:35]} Qc7 {[%emt 0:00:00]} 44. Kf3 {[%emt 0:00:28]} Ke8 {[%emt 0:00:00]} 45. Qd3 {[%emt 0:00:43]} Kf7 {[%emt 0:00:00]} 46. Qa6 {[%emt 0:00:05]} Ke6 {[%emt 0:01:43]} 47. Qd3 {[%emt 0:01:39]} Kf6 {[%emt 0:00:22]} 48. Qa3 {[%emt 0:00:29]} Qe7 {[%emt 0:01:20]} 49. Qa6 {[%emt 0:00:04]} Qe4+ {[%emt 0:01:16]} 50. Kf2 {[%emt 0:00:08]} Qc2+ {[%emt 0:00:06]} 51. Kg3 {[%emt 0:00:05]} Qc1 {[%emt 0:02:29]} 52. Kf3 {[%emt 0:01:54]} Qh1+ {[%emt 0:00:31]} 53. Kg3 {[%emt 0:00:42]} Qe1+ {[%emt 0:00:16]} 54. Kf3 {[%emt 0:00:15]} Qd1+ {[%emt 0:00:19]} 55. Kg3 {[%emt 0:00:10]} Qc1 {[%emt 0:00:03]} 56. Kf3 {[%emt 0:00:06]} g5 {[%emt 0:02:30]} 57. Qc8 {[%emt 0:01:05]} Qf1+ {[%emt 0:00:14]} 58. Kg3 {[%emt 0:00:04]} gxf4+ {[%emt 0:00:54]} 59. exf4 {[%emt 0:00:06]} Qg1+ {[%emt 0:00:29]} 60. Kf3 {[%emt 0:00:07]} Qd1+ {[%emt 0:00:42]} 61. Kg3 {[%emt 0:01:04]} Qe1+ {[%emt 0:00:14]} (61... Qxd4 $2 62. Qh8+ (62. Qxc6+ Kf7 $11) 62... Ke7 63. Qxd4 $18) 62. Kf3 {[%emt 0:00:38]} Qe4+ {[%emt 0:00:04]} 63. Kg3 {[%emt 0:00:06]} Qe3+ {[%emt 0:00:06]} 64. Kh4 {[%emt 0:01:37]} Qf2+ {[%emt 0:02:49]} (64... Qxd4 $2 {loses.} 65. Qh8+ (65. Qxc6+ Kf7 $11) 65... Ke7 66. Qxd4 $18) 65. Kh3 {[%emt 0:00:04]} Qf3+ {[%emt 0:00:05]} 66. Kh4 {[%emt 0:00:06]} Qh1+ {[%emt 0:00:13]} (66... Qxf4 67. Qf8+ (67. Qxc6+ Kg7 $17) 67... Ke6 68. Qxf4 Kd7 69. Qxh6 Kc7 70. g5 Kb7 71. g6) 67. Kg3 {[%emt 0:00:03]} Qe1+ {[%emt 0:00:05]} 68. Kf3 {[%emt 0:00:37]} Qc3+ {[%emt 0:00:18]} 69. Kg2 {[%emt 0:00:08]} Qb2+ {[%emt 0:00:38]} 70. Kg3 {[%emt 0:00:28]} Qa3+ {[%emt 0:00:06]} 71. Kg2 {[%emt 0:02:11]} Qb2+ {[%emt 0:01:25]} 72. Kg3 {[%emt 0:00:14]} Qa3+ {[%emt 0:00:03]} 73. Kh4 {[%emt 0:03:54]} Qd6 {[%emt 0:00:04][%cal Of6f7]} 74. Kh5 {[%emt 0:00:52]} Kf7 {[%emt 0:01:29] Wards off Qg8+} (74... Kg7 $5 75. Qb7+ $8 Kg8 76. Qa8+ (76. Qxa7 Qxf4 77. Qe7 Qf7+ 78. Qxf7+ Kxf7 $11) 76... Qf8 77. Qxa7 (77. Qxf8+ Kxf8 78. Kg6 a5 $17) 77... Qxf4 $11) 75. Qb7+ {[%emt 0:00:18]} Kg8 $1 {[%emt 0:01:33]} 76. Qc8+ {[%emt 0:02:55]} Kg7 {[%emt 0:00:18]} 77. Qb7+ $1 {[%emt 0:00:10]} Kg8 $1 {[%emt 0:00:06]} 78. Qa8+ {[%emt 0:01:58]} Kg7 $2 {[%emt 0:01:09][%mdl 8192]} (78... Qf8 $1 $11 {and Black is okay.} 79. Qxa7 (79. Qxf8+ $2 Kxf8 80. Kg6 a5 $19) 79... Qxf4) 79. Qxa7+ $18 {[%emt 0:00:04]} Kg8 {[%emt 0:00:03] [#]} 80. Qa8+ $1 {[%emt 0:00:11]} Kg7 {[%emt 0:00:05]} 81. Qb7+ {[%emt 0:00:04]} Kg8 {[%emt 0:00:03] [#]} 82. Qc8+ $1 {[%emt 0:01:26]} Kg7 $2 {[%emt 0:00:12][%mdl 8192]} (82... Kf7 $11) 83. Qf5 {[%emt 0:00:34] Hoping for Qe5+.} c5 {[%emt 0:01:52]} 84. dxc5 {[%emt 0:00:37]} Qxc5 {[%emt 0:00:05]} 85. Qg6+ {[%emt 0:00:23]} Kf8 {[%emt 0:00:05]} 86. Qxh6+ {[%emt 0:00:03]} Ke7 {[%emt 0:00:07]} 87. Qg7+ {[%emt 0:00:07]} (87. Qg5+ $142 Ke8 88. Qe5+ Kf7 89. g5) 87... Ke8 {[%emt 0:01:14]} 88. Qe5+ {[%emt 0:00:03]} Kf7 {[%emt 0:00:43]} 89. g5 {[%emt 0:00:27][%cal Bg4g5,Bg5g6][%mdl 32]} Qc6 {[%emt 0:00:59]} 90. f5 {[%emt 0:00:23]} Qd7 {[%emt 0:00:32]} 91. g6+ {[%emt 0:00:12]} Kg8 {[%emt 0:00:08]} 92. Qe6+ {[%emt 0:00:27]} 1-0

[Event "98th Caplin Hastings Masters 2024-25"]
[Site "Hastings"]
[Date "2024.12.31"]
[Round "5.17"]
[White "Zhang, Kendrick Botong"]
[Black "Briem, Benedikt"]
[Result "0-1"]
[ECO "C54"]
[WhiteElo "1979"]
[BlackElo "2132"]
[Annotator "NA RC"]
[PlyCount "76"]
[EventDate "2024.12.23"]
[EventType "swiss"]
[EventCountry "ENG"]
[SourceTitle "playchess.com"]
[Source "ChessBase"]
[SourceQuality "1"]
[TimeControl "5400+30"]

1. e4 {[%emt 0:00:04]} e5 {[%emt 0:06:14]} 2. Nf3 {[%emt 0:00:11]} Nc6 {[%emt 0:00:04]} 3. Bc4 {[%emt 0:00:08]} Bc5 {[%emt 0:00:07]} 4. d3 {[%emt 0:00:10]} Nf6 {[%emt 0:00:07]} 5. Bg5 {[%emt 0:00:12]} O-O {[%emt 0:00:11]} 6. c3 {[%emt 0:02:14]} h6 {[%emt 0:01:16]} 7. Bh4 {[%emt 0:01:11]} Be7 {[%emt 0:00:06]} 8. Bg3 {[%emt 0:03:52]} d6 {[%emt 0:00:08]} 9. a4 {[%emt 0:03:29]} a5 {[%emt 0:05:09]} 10. Nbd2 {[%emt 0:08:05]} Kh8 {[%emt 0:01:34]} 11. O-O {[%emt 0:07:55]} Nh7 {[%emt 0:02:13]} 12. d4 {[%emt 0:13:20]} Bf6 {[%emt 0:05:07]} 13. dxe5 {[%emt 0:09:51]} dxe5 {[%emt 0:00:20]} 14. Qb3 {[%emt 0:01:09]} Qe7 {[%emt 0:03:15]} 15. Rfd1 {[%emt 0:03:19]} Ng5 {[%emt 0:07:33]} 16. Nxg5 {[%emt 0:06:50]} Bxg5 {[%emt 0:00:34]} 17. Nf3 {[%emt 0:02:09]} Bf6 {[%emt 0:02:23]} 18. Rd3 {[%emt 0:01:34]} Nb8 {[%emt 0:02:43]} 19. Rad1 {[%emt 0:09:38]} Nd7 {[%emt 0:04:16]} 20. Qc2 {[%emt 0:03:12]} Nc5 {[%emt 0:04:15]} 21. R3d2 {[%emt 0:02:49]} Bg4 {[%emt 0:00:51]} 22. Be2 {[%emt 0:02:05]} Be6 {[%emt 0:02:10]} 23. c4 {[%emt 0:00:32]} Bd7 {[%emt 0:04:31]} 24. b3 {[%emt 0:00:41]} Bc6 {[%emt 0:03:19]} 25. Bd3 {[%emt 0:01:06]} Rad8 {[%emt 0:00:34]} 26. Re1 {[%emt 0:06:15]} Rd7 {[%emt 0:02:27]} 27. Bf1 {[%emt 0:01:53]} Rfd8 {[%emt 0:01:34]} 28. Rxd7 {[%emt 0:00:44]} Rxd7 {[%emt 0:00:20]} 29. Nd2 {[%emt 0:02:15]} Ne6 {[%emt 0:04:40]} 30. Qc3 {[%emt 0:02:35]} Qc5 {[%emt 0:04:58]} 31. Nf3 {[%emt 0:02:26]} Nd4 {[%emt 0:00:39]} 32. Nxd4 {[%emt 0:00:26]} Rxd4 {[%emt 0:00:14]} 33. Qc2 {[%emt 0:01:04]} b6 {[%emt 0:04:38]} 34. Kh1 {[%emt 0:01:39]} Qd6 {[%emt 0:01:56]} 35. f3 {[%emt 0:00:49]} Bg5 {[%emt 0:03:05]} 36. Re2 {[%emt 0:01:13]} Rd1 {[%emt 0:00:48]} 37. Kg1 {[%emt 0:00:16]} Qd4+ {[%emt 0:01:58]} 38. Bf2 {[%emt 0:01:31]} Qa1 {[%emt 0:00:23]} 0-1